bitfinex/quotes_BTCUSD_20250830
["timestamp","ask_amount","ask_price","bid_price","bid_amount"]
[1756585248345,1.4515654,108910.0,108900.0,0.00014297]
[1756585253448,1.451558,108910.0,108900.0,0.00014297]
[1756585253997,1.45153826,108910.0,108900.0,0.00014297]
[1756585257067,1.43173979,108910.0,108900.0,0.00014297]
[1756585258058,1.45151848,108910.0,108900.0,0.00014297]
[1756585258259,1.43173979,108910.0,108900.0,0.00014297]
[1756585259355,1.42189809,108910.0,108900.0,0.00014297]
[1756585260373,0.57486905,108910.0,108900.0,0.00538297]
[1756585260603,0.91933872,108910.0,108900.0,0.00538297]
[1756585260820,0.88528076,108910.0,108900.0,0.00538297]
[1756585261027,0.89171925,108910.0,108900.0,0.00538297]
[1756585262079,0.90138861,108910.0,108900.0,0.00538297]
[1756585262684,0.87778174,108910.0,108900.0,0.00538297]
[1756585263090,0.88629049,108910.0,108900.0,0.00538297]
[1756585263262,0.87778174,108910.0,108900.0,0.00538297]
[1756585263638,0.53330722,108910.0,108900.0,0.20538297]
[1756585263873,0.87778174,108910.0,108900.0,0.20538297]
[1756585264250,0.87778174,108910.0,108900.0,0.00538297]
[1756585264426,0.88422042,108910.0,108900.0,0.00538297]
[1756585265241,0.89065898,108910.0,108900.0,0.00538297]
[1756585266194,0.88422042,108910.0,108900.0,0.00538297]
[1756585266980,0.9013898,108910.0,108900.0,0.00538297]
[1756585267584,0.88422042,108910.0,108900.0,0.00538297]
[1756585267778,0.90138972,108910.0,108900.0,0.00538297]
[1756585267978,0.88422042,108910.0,108900.0,0.00538297]
[1756585268256,0.88629042,108910.0,108900.0,0.00538297]
[1756585269591,0.88629042,108910.0,108900.0,0.00767865]
[1756585270179,1.2458731,108910.0,108900.0,0.00767865]
[1756585270874,1.22869494,108910.0,108900.0,0.00767865]
[1756585271186,1.23076494,108910.0,108900.0,0.00014297]
[1756585271394,1.38704494,108910.0,108900.0,0.00014297]
[1756585271804,1.41066839,108910.0,108900.0,0.00014297]
[1756585272118,0.74613635,108910.0,108900.0,0.00014297]
[1756585272320,1.43508539,108910.0,108900.0,0.00014297]
[1756585272566,0.59098635,108910.0,108900.0,0.00767865]
[1756585272770,1.27993539,108910.0,108900.0,0.00767865]
[1756585274533,0.56336935,108910.0,108900.0,0.19133337]
[1756585274759,0.90784387,108910.0,108900.0,0.18903769]
[1756585275310,0.90784387,108910.0,108900.0,0.34219769]
[1756585281341,0.90784387,108910.0,108900.0,0.18903769]
[1756585281510,0.90784387,108910.0,108900.0,0.34215769]
[1756585282053,0.90784495,108910.0,108900.0,0.34215769]
[1756585283562,0.56784495,108910.0,108900.0,0.34215769]
[1756585288151,0.56987495,108910.0,108900.0,0.34215769]
[1756585289086,0.56988569,108910.0,108900.0,0.34215769]
[1756585292716,0.55269832,108910.0,108900.0,0.34215769]
[1756585292916,0.56989272,108910.0,108900.0,0.34215769]
[1756585294052,0.56786272,108910.0,108900.0,0.34215769]
[1756585295627,0.56786272,108910.0,108900.0,0.36977269]
[1756585296246,0.03975034,108910.0,108900.0,0.36977269]
[1756585296425,0.02363308,108910.0,108900.0,0.36977269]
[1756585297471,0.3681076,108910.0,108900.0,0.36977269]
[1756585297653,0.37789581,108910.0,108900.0,0.36977269]
[1756585297847,0.03342129,108910.0,108900.0,0.36977269]
[1756585298593,0.02363308,108910.0,108900.0,0.36977269]
[1756585299891,0.02362524,108910.0,108900.0,0.36977269]
[1756585301319,0.03356133,108910.0,108900.0,0.36977269]
[1756585301820,0.02362524,108910.0,108900.0,0.36977269]
[1756585303440,0.00643868,108910.0,108900.0,0.36977269]
[1756585303651,0.02362306,108910.0,108900.0,0.36977269]
[1756585304002,0.02362231,108910.0,108900.0,0.36977269]
[1756585307120,0.02362089,108910.0,108900.0,0.36977269]
[1756585307320,0.02362089,108910.0,108900.0,0.56977269]
[1756585307743,0.02362089,108910.0,108900.0,0.36977269]
[1756585307925,0.02362089,108910.0,108900.0,0.56977269]
[1756585308130,0.02362089,108910.0,108900.0,0.36977269]
[1756585309296,0.02362089,108910.0,108900.0,0.4627527]
[1756585311911,0.02362089,108910.0,108900.0,0.3096327]
[1756585312117,0.55371327,108910.0,108900.0,0.4627127]
[1756585313675,0.55371327,108910.0,108900.0,0.4574727]
[1756585314171,0.55371321,108910.0,108900.0,0.4574727]
[1756585315768,0.55371321,108910.0,108900.0,0.3043927]
[1756585315971,0.55371321,108910.0,108900.0,0.4574727]
[1756585317836,0.55371321,108910.0,108900.0,0.4595627]
[1756585318059,0.55371321,108910.0,108900.0,0.4574727]
[1756585319866,0.55371705,108910.0,108900.0,0.4574727]
[1756585320278,0.55371705,108910.0,108900.0,0.27381798]
[1756585320507,0.02362467,108910.0,108900.0,0.4626827]
[1756585321124,0.36809919,108910.0,108900.0,0.4626827]
[1756585322059,0.02362467,108910.0,108900.0,0.4626827]
[1756585322258,0.00643868,108910.0,108900.0,0.4626827]
[1756585325658,0.00643868,108910.0,108900.0,0.80715722]
[1756585326459,0.00643868,108910.0,108900.0,1.00715722]
[1756585326657,0.00643868,108910.0,108900.0,0.80715722]
[1756585327295,0.00643868,108910.0,108900.0,0.80815722]
[1756585327511,0.00643868,108910.0,108900.0,0.81215722]
[1756585327686,0.00643868,108910.0,108900.0,0.81115722]
[1756585327893,0.00643868,108910.0,108900.0,0.66107722]
[1756585328036,0.00643868,108910.0,108900.0,0.4696427]
[1756585328241,0.00643868,108910.0,108900.0,0.3166027]
[1756585328482,0.00643868,108910.0,108900.0,0.4696427]
[1756585331525,0.00643868,108910.0,108900.0,0.81411722]
[1756585331645,0.00643868,108910.0,108900.0,0.4696427]
[1756585331851,0.00643868,108910.0,108900.0,0.81411722]
[1756585336603,0.00643868,108910.0,108900.0,0.66107722]
[1756585336808,0.00643868,108910.0,108900.0,0.81411722]
[1756585337358,0.00643868,108910.0,108900.0,0.66107722]
[1756585337566,0.00643868,108910.0,108900.0,0.4696427]
[1756585337764,0.00643868,108910.0,108900.0,0.81411722]
[1756585342539,0.00643868,108910.0,108900.0,1.02649056]
[1756585342748,0.00643868,108910.0,108900.0,1.17953056]
[1756585342966,0.00643868,108910.0,108900.0,1.44213056]
[1756585343638,0.00643868,108910.0,108900.0,2.37660508]
[1756585343846,0.00643868,108910.0,108900.0,1.83213056]
[1756585345098,0.00314,108960.0,108950.0,0.18357044]
[1756585345297,0.71134913,108960.0,108950.0,0.33701044]
[1756585345501,0.71134913,108960.0,108950.0,0.18357044]
[1756585345740,0.89490272,108960.0,108950.0,0.33697044]
[1756585346108,0.90472016,108960.0,108950.0,0.33697044]
[1756585346322,0.90472016,108960.0,108950.0,0.33705792]
[1756585346525,0.90672016,108960.0,108950.0,0.33705792]
[1756585346913,0.21977112,108960.0,108950.0,0.33705792]
[1756585347116,0.72516657,108960.0,108950.0,0.33705792]
[1756585347318,0.03621753,108960.0,108950.0,0.33705792]
[1756585347525,0.3807934,108960.0,108950.0,0.33705792]
[1756585348023,0.03621753,108960.0,108950.0,0.33705792]
[1756585348253,0.3807934,108960.0,108950.0,0.33705792]
[1756585348795,0.56434699,108960.0,108950.0,0.33705792]
[1756585349463,0.56434699,108960.0,108950.0,0.18365792]
[1756585349699,0.56434699,108960.0,108950.0,0.33765792]
[1756585350045,0.56234699,108960.0,108950.0,0.33765792]
[1756585350252,0.56034699,108960.0,108950.0,0.33765792]
[1756585350448,0.56234699,108960.0,108950.0,0.18365792]
[1756585350628,0.56234699,108960.0,108950.0,0.33761792]
[1756585350834,0.56034699,108960.0,108950.0,0.33761792]
[1756585351877,0.56234699,108960.0,108950.0,0.33761792]
[1756585352267,0.56034699,108960.0,108950.0,0.33761792]
[1756585354514,0.56034699,108960.0,108950.0,0.15396748]
[1756585354681,0.56034699,108960.0,108950.0,0.15626211]
[1756585355728,0.56033389,108960.0,108950.0,0.15626211]
[1756585356923,0.56033389,108960.0,108950.0,0.15622211]
[1756585360851,0.55719389,108960.0,108950.0,0.15622211]
[1756585363453,0.55719389,108960.0,108950.0,0.33979255]
[1756585363585,0.55719389,108960.0,108950.0,0.33749792]
[1756585364182,0.55719389,108960.0,108950.0,0.18152948]
[1756585365921,0.55719389,108960.0,108950.0,0.36509992]
[1756585366510,0.55720154,108960.0,108950.0,0.36509992]
[1756585366705,0.20071823,108960.0,108950.0,0.36509992]
[1756585366911,0.5452941,108960.0,108950.0,0.36813992]
[1756585368112,0.5452941,108960.0,108950.0,0.37019992]
[1756585369489,0.88988369,108960.0,108950.0,0.37019992]
[1756585370258,0.90603738,108960.0,108950.0,0.37019992]
[1756585371390,0.90603738,108960.0,108950.0,0.57019992]
[1756585371593,0.90603738,108960.0,108950.0,0.34259792]
[1756585372446,0.55885192,108960.0,108950.0,0.34259792]
[1756585372698,1.24603738,108960.0,108950.0,0.54259792]
[1756585372873,1.24603738,108960.0,108950.0,0.39259792]
[1756585373076,1.24603738,108960.0,108950.0,0.54259792]
[1756585373289,1.24603738,108960.0,108950.0,0.34259792]
[1756585373653,1.24801738,108960.0,108950.0,0.18875792]
[1756585373865,1.24801738,108960.0,108950.0,0.34239792]
[1756585374804,1.24801738,108960.0,108950.0,0.18875792]
[1756585375015,1.24801738,108960.0,108950.0,0.34235792]
[1756585375317,1.24801738,108960.0,108950.0,0.34029792]
[1756585376669,1.24801738,108960.0,108950.0,0.24029792]
[1756585376869,1.24801738,108960.0,108950.0,0.15664]
[1756585377074,1.2415754,108960.0,108950.0,0.15893463]
[1756585377299,1.24806405,108960.0,108950.0,0.15893463]
[1756585380705,1.24806405,108960.0,108950.0,0.16097463]
[1756585381367,1.24806405,108960.0,108950.0,0.34454507]
[1756585381575,1.24806405,108960.0,108950.0,0.34225044]
[1756585383323,0.55691859,108960.0,108950.0,0.34225044]
[1756585383564,1.24806405,108960.0,108950.0,0.34225044]
[1756585385297,1.24608405,108960.0,108950.0,0.34225044]
[1756585386482,1.23963314,108960.0,108950.0,0.34225044]
[1756585386826,1.24608429,108960.0,108950.0,0.34225044]
[1756585387740,1.24608409,108960.0,108950.0,0.34225044]
[1756585388241,1.24806409,108960.0,108950.0,0.34225044]
[1756585389025,1.24806409,108960.0,108950.0,0.18865044]
[1756585389225,1.24806409,108960.0,108950.0,0.15656]
[1756585389428,1.24806409,108960.0,108950.0,0.15885463]
[1756585390044,1.24806409,108960.0,108950.0,0.34242507]
[1756585390226,1.24806409,108960.0,108950.0,0.34013044]
[1756585392140,1.23086208,108960.0,108950.0,0.34013044]
[1756585392342,1.2480656,108960.0,108950.0,0.34013044]
[1756585394279,1.2480656,108960.0,108950.0,0.15656]
[1756585394476,1.2480656,108960.0,108950.0,0.15885463]
[1756585396758,1.2480656,108960.0,108950.0,0.34446507]
[1756585396962,1.2480656,108960.0,108950.0,0.34217044]
[1756585397507,0.55890378,108960.0,108950.0,0.34217044]
[1756585398111,1.24806924,108960.0,108950.0,0.34217044]
[1756585398937,0.55890378,108960.0,108950.0,0.34217044]
[1756585399140,1.24806924,108960.0,108950.0,0.34217044]
[1756585399338,0.55890378,108960.0,108950.0,0.34217044]
[1756585399540,1.24806924,108960.0,108950.0,0.34217044]
[1756585408269,1.24807001,108960.0,108950.0,0.34217044]
[1756585408986,1.24807,108960.0,108950.0,0.34217044]
[1756585409195,0.55890454,108960.0,108950.0,0.34217044]
[1756585409379,1.24807,108960.0,108950.0,0.34217044]
[1756585418784,0.02365924,108960.0,108950.0,0.77973318]
[1756585419110,0.34458273,108970.0,108960.0,0.3835397]
[1756585419259,0.36179256,108970.0,108960.0,0.1856197]
[1756585419443,0.36179256,108970.0,108960.0,0.1886797]
[1756585420038,0.37145317,108970.0,108960.0,0.2162787]
[1756585420452,0.36179256,108970.0,108960.0,0.2162787]
[1756585420655,0.36279256,108970.0,108960.0,0.2162787]
[1756585420852,0.36379256,108970.0,108960.0,0.2162787]
[1756585423163,0.01920983,108970.0,108960.0,0.2162787]
[1756585423781,0.36379256,108970.0,108960.0,0.2162787]
[1756585425031,0.01920983,108970.0,108960.0,0.30925871]
[1756585425381,0.002,108970.0,108960.0,0.30925871]
[1756585429248,0.002,108970.0,108960.0,0.46237871]
[1756585430757,0.002,108970.0,108960.0,0.30925871]
[1756585431057,0.002,108970.0,108960.0,0.46233871]
[1756585433102,0.65341193,108980.0,108970.0,0.18353675]
[1756585433267,0.54725356,108980.0,108970.0,0.18353675]
[1756585433924,0.89183629,108980.0,108970.0,0.15308]
[1756585434286,0.89383629,108980.0,108970.0,0.15308]
[1756585434806,0.89583629,108980.0,108970.0,0.15308]
[1756585435206,0.18353675,108970.0,108960.0,0.30411871]
[1756585435407,0.53009948,108970.0,108960.0,0.36423259]
[1756585435617,0.53009948,108970.0,108960.0,0.180679]
[1756585435817,0.53009948,108970.0,108960.0,0.027599]
[1756585436077,0.53009948,108970.0,108960.0,0.180679]
[1756585436277,0.53109948,108970.0,108960.0,0.36423259]
[1756585436501,0.53109948,108970.0,108960.0,0.36721259]
[1756585440243,0.53109948,108970.0,108960.0,0.36431259]
[1756585440461,0.54827375,108970.0,108960.0,0.36431259]
[1756585440685,0.54827375,108970.0,108960.0,0.36729259]
[1756585441248,0.364737,108970.0,108960.0,0.36940259]
[1756585441427,0.34756273,108970.0,108960.0,0.36940259]
[1756585441631,0.36473822,108970.0,108960.0,0.36940259]
[1756585442873,0.36474066,108970.0,108960.0,0.36940259]
[1756585444349,0.54827741,108970.0,108960.0,0.027599]
[1756585444525,0.54827741,108970.0,108960.0,0.36427259]
[1756585444733,0.54629741,108970.0,108960.0,0.36936259]
[1756585445092,0.54827741,108970.0,108960.0,0.36936259]
[1756585445291,0.89286014,108970.0,108960.0,0.180759]
[1756585445493,0.18355359,108960.0,108950.0,0.07358]
[1756585445702,0.70832339,108960.0,108950.0,0.53300045]
[1756585445875,0.01915793,108960.0,108950.0,0.50540045]
[1756585446076,0.70634339,108960.0,108950.0,0.50540045]
[1756585446724,0.70634339,108960.0,108950.0,0.50640045]
[1756585447346,0.36176066,108960.0,108950.0,0.50640045]
[1756585449722,0.36177606,108960.0,108950.0,0.50640045]
[1756585450143,0.54532965,108960.0,108950.0,0.50640045]
[1756585450911,0.88991238,108960.0,108950.0,0.50640045]
[1756585452312,0.89189238,108960.0,108950.0,0.50640045]
[1756585452513,0.91949238,108960.0,108950.0,0.50640045]
[1756585456832,0.91949238,108960.0,108950.0,0.35324045]
[1756585457032,0.91949238,108960.0,108950.0,0.50636045]
[1756585458758,0.91751238,108960.0,108950.0,0.50636045]
[1756585460587,0.91750678,108960.0,108950.0,0.50636045]
[1756585460794,0.73395319,108960.0,108950.0,0.50636045]
[1756585467217,0.91948678,108960.0,108950.0,0.50425045]
[1756585469225,0.91948678,108960.0,108950.0,0.50639045]
[1756585469404,0.04478773,108960.0,108950.0,0.50639045]
[1756585469817,0.73395319,108960.0,108950.0,0.35327045]
[1756585470026,0.73395319,108960.0,108950.0,0.50643045]
[1756585471319,0.73396009,108960.0,108950.0,0.50643045]
[1756585472416,0.38937736,108960.0,108950.0,0.50643045]
[1756585474772,0.37218273,108960.0,108950.0,0.50643045]
[1756585474977,0.38938495,108960.0,108950.0,0.50643045]
[1756585478443,0.04480222,108960.0,108950.0,0.50643045]
[1756585481548,0.04480222,108960.0,108950.0,0.85101318]
[1756585481978,0.04480632,108960.0,108950.0,0.85101318]
[1756585485630,0.04480706,108960.0,108950.0,0.85101318]
[1756585487867,0.22836065,108960.0,108950.0,0.85101318]
[1756585488738,0.04480706,108960.0,108950.0,0.85101318]
[1756585492813,0.04480692,108960.0,108950.0,0.85101318]
[1756585493545,0.04480708,108960.0,108950.0,0.85101318]
[1756585495751,0.04480708,108960.0,108950.0,0.50643045]
[1756585495896,0.04480708,108960.0,108950.0,0.85101318]
[1756585497314,0.22836067,108960.0,108950.0,0.85101318]
[1756585498608,0.22836067,108960.0,108950.0,0.35327045]
[1756585498796,1.25950613,108960.0,108950.0,0.0716]
[1756585499001,1.29855395,108960.0,108950.0,0.15408]
[1756585500331,0.95397122,108960.0,108950.0,0.15408]
[1756585500546,0.95268122,108960.0,108950.0,0.15408]
[1756585502033,0.94622861,108960.0,108950.0,0.15408]
[1756585502273,0.9526616,108960.0,108950.0,0.15408]
[1756585502661,0.9526616,108960.0,108950.0,0.001]
[1756585502860,0.9526616,108960.0,108950.0,0.15408]
[1756585503067,1.29724433,108960.0,108950.0,0.15408]
[1756585503678,1.08609074,108960.0,108950.0,0.15408]
[1756585503840,1.29724733,108960.0,108950.0,0.15408]
[1756585504442,0.92135939,108960.0,108950.0,0.15927]
[1756585504684,0.57677666,108960.0,108950.0,0.15927]
[1756585504845,0.92135939,108960.0,108950.0,0.15927]
[1756585505794,0.92135939,108960.0,108950.0,0.00619]
[1756585505993,0.92135939,108960.0,108950.0,0.15927]
[1756585509219,0.92134046,108960.0,108950.0,0.15927]
[1756585510920,0.57477773,108960.0,108950.0,0.34284044]
[1756585511382,0.57477773,108960.0,108950.0,0.15927]
[1756585511573,0.57477773,108960.0,108950.0,0.16156463]
[1756585512745,0.5683356,108960.0,108950.0,0.6897178]
[1756585512949,0.55759859,108960.0,108950.0,0.68742317]
[1756585513152,0.57477726,108960.0,108950.0,0.68742317]
[1756585513750,0.57477758,108960.0,108950.0,0.68742317]
[1756585513957,0.5747777,108960.0,108950.0,0.68742317]
[1756585515875,0.39122411,108960.0,108950.0,0.68742317]
[1756585518019,0.5747777,108960.0,108950.0,0.68742317]
[1756585523774,0.57478838,108960.0,108950.0,0.68742317]
[1756585525735,0.57478838,108960.0,108950.0,0.68758317]
[1756585526794,0.05123479,108960.0,108950.0,0.68758317]
[1756585527305,0.03404803,108960.0,108950.0,0.68758317]
[1756585527510,0.23479465,108960.0,108950.0,0.68758317]
[1756585531637,0.23479608,108960.0,108950.0,0.68758317]
[1756585531839,0.05124249,108960.0,108950.0,0.68758317]
[1756585532564,0.23479608,108960.0,108950.0,0.68758317]
[1756585534357,0.21115659,108960.0,108950.0,0.68758317]
[1756585534601,0.23480043,108960.0,108950.0,0.68758317]
[1756585534808,0.05124684,108960.0,108950.0,0.68758317]
[1756585537067,0.23480043,108960.0,108950.0,0.68758317]
[1756585537425,0.23480043,108960.0,108950.0,0.68746317]
[1756585538062,0.23480043,108960.0,108950.0,0.18976044]
[1756585538270,0.23480043,108960.0,108950.0,0.68746317]
[1756585539107,0.05124684,108960.0,108950.0,0.68746317]
[1756585541069,0.01719552,108960.0,108950.0,0.85104318]
[1756585542316,0.027598,108970.0,108960.0,0.18355359]
[1756585542527,0.05124457,108970.0,108960.0,1.12208906]
[1756585542765,0.04479551,108970.0,108960.0,0.97099906]
[1756585542958,0.04479551,108970.0,108960.0,1.12415906]
[1756585543325,0.01719751,108970.0,108960.0,1.12415906]
[1756585544160,0.01819751,108970.0,108960.0,1.12415906]
[1756585544874,0.01819751,108970.0,108960.0,0.97957633]
[1756585545031,0.01819751,108970.0,108960.0,0.77957633]
[1756585545234,0.01818832,108970.0,108960.0,0.77957633]
[1756585545438,0.001,108970.0,108960.0,0.77957633]
[1756585547011,0.001,108970.0,108960.0,0.62641633]
[1756585547215,0.001,108970.0,108960.0,0.77961633]
[1756585550382,0.001,108970.0,108960.0,0.62641633]
[1756585550591,0.18453675,108970.0,108960.0,0.2818336]
[1756585550793,0.20171259,108970.0,108960.0,0.77957633]
[1756585550995,0.22930959,108970.0,108960.0,0.77957633]
[1756585551317,0.21213375,108970.0,108960.0,0.77957633]
[1756585551959,0.028597,108970.0,108960.0,0.77957633]
[1756585556560,0.21213375,108970.0,108960.0,0.77957633]
[1756585557585,0.22930964,108970.0,108960.0,0.77957633]
[1756585560454,0.21213375,108970.0,108960.0,0.77957633]
[1756585562160,0.21213375,108970.0,108960.0,0.77953633]
[1756585562365,0.21213375,108970.0,108960.0,0.62641633]
[1756585562565,0.21213375,108970.0,108960.0,0.77953633]
[1756585563355,0.22931429,108970.0,108960.0,0.77953633]
[1756585565493,0.22931618,108970.0,108960.0,0.77953633]
[1756585568757,0.22932547,108970.0,108960.0,0.77953633]
[1756585573740,0.21213375,108970.0,108960.0,0.09828001]
[1756585573949,0.55671648,108970.0,108960.0,0.25136001]
[1756585574832,0.5631692,108970.0,108960.0,0.25136001]
[1756585575517,0.5631692,108970.0,108960.0,0.4349136]
[1756585576026,0.55671648,108970.0,108960.0,0.4349136]
[1756585576232,0.21213375,108970.0,108960.0,0.4349136]
[1756585577101,0.21213375,108970.0,108960.0,0.25136001]
[1756585577891,0.21213375,108970.0,108960.0,0.4349136]
[1756585578954,0.22934193,108970.0,108960.0,0.77949633]
[1756585579351,0.22934193,108970.0,108960.0,0.4349136]
[1756585579534,0.21213375,108970.0,108960.0,0.25136001]
[1756585580897,0.21213375,108970.0,108960.0,0.4349136]
[1756585582867,0.23579588,108970.0,108960.0,0.4349136]
[1756585584816,0.23579553,108970.0,108960.0,0.4349136]
[1756585585337,0.23579546,108970.0,108960.0,0.4349136]
[1756585588570,0.23579546,108970.0,108960.0,0.77949633]
[1756585588780,0.23579546,108970.0,108960.0,0.59594274]
[1756585590693,0.58037819,108970.0,108960.0,0.0053]
[1756585590876,0.18355359,108960.0,108950.0,0.25713044]
[1756585591210,0.20076216,108960.0,108950.0,0.50319045]
[1756585591418,0.20274216,108960.0,108950.0,0.50319045]
[1756585592163,0.23034216,108960.0,108950.0,0.50419045]
[1756585592604,0.23034216,108960.0,108950.0,0.50616045]
[1756585594251,0.23034216,108960.0,108950.0,0.50419045]
[1756585594671,0.57492489,108960.0,108950.0,0.50419045]
[1756585594989,0.57294489,108960.0,108950.0,0.50616045]
[1756585595597,0.57292727,108960.0,108950.0,0.50616045]
[1756585595765,0.22834454,108960.0,108950.0,0.50616045]
[1756585602064,0.20982438,108960.0,108950.0,0.50616045]
[1756585606229,0.19263343,108960.0,108950.0,0.50616045]
[1756585606405,0.20982316,108960.0,108950.0,0.50616045]
[1756585611214,0.01297796,108960.0,108950.0,0.50616045]
[1756585611436,0.22413155,108960.0,108950.0,0.85074318]
[1756585612553,0.0276,108960.0,108950.0,0.85074318]
[1756585613108,0.21115359,108960.0,108950.0,0.85074318]
[1756585614489,0.0276,108960.0,108950.0,0.85074318]
[1756585616017,0.21115359,108960.0,108950.0,0.35308045]
[1756585616210,0.21313359,108960.0,108950.0,0.85074318]
[1756585616420,0.21313359,108960.0,108950.0,0.50616045]
[1756585616603,0.21115359,108960.0,108950.0,0.50616045]
[1756585619344,0.21115359,108960.0,108950.0,0.85074318]
[1756585621345,0.18355359,108960.0,108950.0,0.85074318]
[1756585622983,0.18355359,108960.0,108950.0,0.62706318]
[1756585623318,0.20076132,108960.0,108950.0,0.78014318]
[1756585624894,0.20076132,108960.0,108950.0,0.62706318]
[1756585625096,0.20076132,108960.0,108950.0,0.78010318]
[1756585625350,0.20076132,108960.0,108950.0,0.43552045]
[1756585626444,0.20076124,108960.0,108950.0,0.43552045]
[1756585627615,0.20076124,108960.0,108950.0,0.28248045]
[1756585628066,0.20721412,108960.0,108950.0,0.43552045]
[1756585628616,0.55179685,108960.0,108950.0,0.43552045]
[1756585628820,0.20721412,108960.0,108950.0,0.43552045]
[1756585630132,0.20721415,108960.0,108950.0,0.43552045]
[1756585634271,0.20721415,108960.0,108950.0,0.09891001]
[1756585634435,0.20721415,108960.0,108950.0,0.25195001]
[1756585635086,0.20721415,108960.0,108950.0,0.43552045]
[1756585637099,0.20721398,108960.0,108950.0,0.43552045]
[1756585637728,0.20721401,108960.0,108950.0,0.43552045]
[1756585640708,0.20721402,108960.0,108950.0,0.43552045]
[1756585643423,0.20721402,108960.0,108950.0,0.78010318]
[1756585644256,0.23481402,108960.0,108950.0,0.78010318]
[1756585644920,0.20721402,108960.0,108950.0,0.78010318]
[1756585647522,0.20721402,108960.0,108950.0,0.77990318]
[1756585647721,0.20076211,108960.0,108950.0,0.77990318]
[1756585647927,0.2072153,108960.0,108950.0,0.77990318]
[1756585648292,0.20721531,108960.0,108950.0,0.77990318]
[1756585651007,0.20721531,108960.0,108950.0,0.43528045]
[1756585651124,0.20721531,108960.0,108950.0,0.77986318]
[1756585652903,0.20076211,108960.0,108950.0,0.77986318]
[1756585657280,0.2072154,108960.0,108950.0,0.77986318]
[1756585658119,0.20076211,108960.0,108950.0,0.77986318]
[1756585658557,0.20076244,108960.0,108950.0,0.77986318]
[1756585661263,0.20076244,108960.0,108950.0,0.85046318]
[1756585662226,0.20721573,108960.0,108950.0,0.85046318]
[1756585666033,0.20721573,108960.0,108950.0,0.77986318]
[1756585667063,0.20076244,108960.0,108950.0,0.25171001]
[1756585667298,0.89384831,108960.0,108950.0,0.154]
[1756585667653,0.92144931,108960.0,108950.0,0.15928]
[1756585668876,0.39126299,108960.0,108950.0,0.6897278]
[1756585669075,0.57481284,108960.0,108950.0,0.68743317]
[1756585669267,0.57480248,108960.0,108950.0,0.68743317]
[1756585669472,0.39124889,108960.0,108950.0,0.68743317]
[1756585669978,0.57480248,108960.0,108950.0,0.68743317]
[1756585670477,0.57480248,108960.0,108950.0,0.50386273]
[1756585670840,0.57480248,108960.0,108950.0,0.57446273]
[1756585671048,0.57480248,108960.0,108950.0,0.75803317]
[1756585671245,0.57480248,108960.0,108950.0,0.22988]
[1756585671465,0.57480248,108960.0,108950.0,0.07688]
[1756585671674,0.91938521,108960.0,108950.0,0.22988]
[1756585672731,0.91937984,108960.0,108950.0,0.22988]
[1756585675256,0.91937984,108960.0,108950.0,0.41345044]
[1756585675643,0.91937984,108960.0,108950.0,0.34285044]
[1756585677757,0.57479711,108960.0,108950.0,0.34285044]
[1756585677983,0.91937984,108960.0,108950.0,0.34285044]
[1756585679685,0.90218388,108960.0,108950.0,0.34285044]
[1756585679895,0.91937472,108960.0,108950.0,0.34285044]
[1756585682449,0.91937472,108960.0,108950.0,0.18985044]
[1756585682651,0.91937472,108960.0,108950.0,0.34285044]
[1756585683560,0.57479199,108960.0,108950.0,0.34285044]
[1756585686206,0.57479199,108960.0,108950.0,0.00628]
[1756585686381,0.57677199,108960.0,108950.0,0.34514507]
[1756585686621,0.57479199,108960.0,108950.0,0.34285044]
[1756585686842,0.91937472,108960.0,108950.0,0.34285044]
[1756585689176,0.89573732,108960.0,108950.0,0.34285044]
[1756585689392,0.91937736,108960.0,108950.0,0.34285044]
[1756585689809,0.57479463,108960.0,108950.0,0.34285044]
[1756585690771,0.23479463,108960.0,108950.0,0.34285044]
[1756585693035,0.23479463,108960.0,108950.0,0.68743317]
[1756585696255,0.23479463,108960.0,108950.0,0.34285044]
[1756585696476,0.23479463,108960.0,108950.0,0.68743317]
[1756585699869,0.22834735,108960.0,108950.0,0.68743317]
[1756585700080,0.23481311,108960.0,108950.0,0.68743317]
[1756585700272,0.23481311,108960.0,108950.0,0.34285044]
[1756585700488,0.23481311,108960.0,108950.0,0.68743317]
[1756585701098,0.23481311,108960.0,108950.0,0.34285044]
[1756585701303,0.23481311,108960.0,108950.0,0.68743317]
[1756585702155,0.23481311,108960.0,108950.0,0.34285044]
[1756585703921,0.02365852,108960.0,108950.0,0.34285044]
[1756585704164,0.20721211,108960.0,108950.0,0.34285044]
[1756585705058,0.02365852,108960.0,108950.0,0.34285044]
[1756585705273,0.02365852,108960.0,108950.0,0.68743317]
[1756585707210,0.02365946,108960.0,108950.0,0.68743317]
[1756585707809,0.02365946,108960.0,108950.0,0.34285044]
[1756585708009,0.02365946,108960.0,108950.0,0.68743317]
[1756585710742,0.02365827,108960.0,108950.0,0.34285044]
[1756585711269,0.02365827,108960.0,108950.0,0.68743317]
[1756585714140,0.02365827,108960.0,108950.0,1.12499591]
[1756585714385,0.01749576,108980.0,108970.0,0.18353675]
[1756585714597,0.04114416,108980.0,108970.0,0.68628948]
[1756585714802,0.0236484,108980.0,108970.0,0.68628948]
[1756585715210,0.0236484,108980.0,108970.0,0.77926949]
[1756585715425,0.01719884,108980.0,108970.0,0.77926949]
[1756585715627,0.03090826,108980.0,108970.0,0.80686449]
[1756585715859,0.01819884,108980.0,108970.0,1.00886449]
[1756585716074,0.01719884,108980.0,108970.0,0.80886449]
[1756585716304,0.18350336,108990.0,108980.0,0.18351663]
[1756585716537,0.20712576,108990.0,108980.0,0.33963663]
[1756585716771,0.20712576,108990.0,108980.0,0.34168663]
[1756585717383,0.0236224,108990.0,108980.0,0.54168663]
[1756585717748,0.2071167,108990.0,108980.0,0.34168663]
[1756585718659,0.21968471,108990.0,108980.0,0.34168663]
[1756585718920,0.03618164,108990.0,108980.0,0.34268663]
[1756585719126,0.21968471,108990.0,108980.0,0.34268663]
[1756585719556,0.21324463,108990.0,108980.0,0.34268663]
[1756585720594,0.21522463,108990.0,108980.0,0.34268663]
[1756585720806,0.55980736,108990.0,108980.0,0.34268663]
[1756585721416,0.55979422,108990.0,108980.0,0.34268663]
[1756585721627,0.55979422,108990.0,108980.0,0.00621]
[1756585721837,0.55979422,108990.0,108980.0,0.15917]
[1756585722071,0.21521149,108990.0,108980.0,0.15917]
[1756585722297,0.55979422,108990.0,108980.0,0.15917]
[1756585722902,0.21521149,108990.0,108980.0,0.34268991]
[1756585723493,0.21323149,108990.0,108980.0,0.34268991]
[1756585724107,0.56093605,109000.0,108980.0,0.34268991]
[1756585724310,0.18350307,108990.0,108980.0,0.34268991]
[1756585726498,0.19610328,108990.0,108980.0,0.34268991]
[1756585726718,0.01260021,108990.0,108980.0,0.34268991]
[1756585726903,0.56093605,109000.0,108980.0,0.34268991]
[1756585727123,0.56736743,109000.0,108980.0,0.34268991]
[1756585728176,0.56836743,109000.0,108980.0,0.34168991]
[1756585728318,0.56936743,109000.0,108980.0,0.34168991]
[1756585731309,0.18350307,108990.0,108980.0,0.34168991]
[1756585731914,0.22572922,109000.0,108990.0,0.38350307]
[1756585732111,0.9157434,109000.0,108990.0,0.18350307]